fUST/lending_fUST_20241231
["ID","MTS","AMOUNT","RATE_DAILY","PERIOD"]
[347208777,1735575040737,-500.0,0.0001315,2]
[347208778,1735575040746,-500.0,0.0001315,2]
[347208779,1735575040755,-1142.77,0.0001315,2]
[347208780,1735575040764,-2210.0,0.0001315,2]
[347208781,1735575040773,-500.0,0.0001315,2]
[347208782,1735575040783,-7749.27,0.0001315,2]
[347208783,1735575040794,-500.0,0.0001315,2]
[347208784,1735575040803,-500.0,0.0001315,2]
[347208785,1735575040812,-2148.86,0.0001315,2]
[347208786,1735575040822,-500.0,0.0001315,2]
[347208787,1735575040831,-500.0,0.0001315,2]
[347208788,1735575040840,-1141.9,0.0001315,2]
[347208789,1735575040850,-645.27,0.0001315,2]
[347208790,1735575040859,-708.52,0.0001315,2]
[347208791,1735575040869,-500.0,0.0001315,2]
[347208792,1735575040879,-806.668,0.000133,2]
[347208793,1735575040888,-500.0,0.00013424,2]
[347208794,1735575040897,-500.0,0.00013424,2]
[347208795,1735575040906,-1142.77,0.00013424,2]
[347208796,1735575040915,-2210.0,0.00013424,2]
[347208797,1735575040929,-500.0,0.00013424,2]
[347208798,1735575040938,-7749.27,0.00013424,2]
[347208799,1735575040947,-614.85178457,0.00013424,2]
[347208800,1735575040956,-500.0,0.00013424,2]
[347208801,1735575040966,-2148.86,0.00013424,2]
[347208802,1735575040976,-500.0,0.00013424,2]
[347208803,1735575040985,-500.0,0.00013424,2]
[347208804,1735575040996,-1141.9,0.00013424,2]
[347208805,1735575041006,-645.27,0.00013424,2]
[347208806,1735575041016,-708.52,0.00013424,2]
[347208807,1735575041026,-630.61061088,0.00013424,2]
[347208808,1735575041035,-152.0,0.00013621,2]
[347208809,1735575041047,-823.0,0.00013628,2]
[347208810,1735575041056,-500.0,0.00013698,2]
[347208811,1735575041065,-500.0,0.00013698,2]
[347208812,1735575041075,-500.0,0.00013698,2]
[347208813,1735575041084,-218.6603726,0.00013698,2]
[347208814,1735575041093,-1000.0,0.00013698,2]
[347208815,1735575041102,-1000.0,0.00013698,2]
[347208816,1735575041111,-464.62970016,0.00013698,2]
[347208817,1735575041120,-1142.77,0.00013698,2]
[347208818,1735575041129,-500.0,0.00013698,2]
[347208819,1735575041138,-500.0,0.00013698,2]
[347208820,1735575041147,-500.0,0.00013698,2]
[347208821,1735575041157,-2210.0,0.00013698,2]
[347208822,1735575041166,-500.0,0.00013698,2]
[347208823,1735575041175,-7749.27,0.00013698,2]
[347208824,1735575041186,-500.0,0.00013698,2]
[347208825,1735575041195,-2148.86,0.00013698,2]
[347208826,1735575041207,-500.0,0.00013698,2]
[347208827,1735575041217,-239.12353024,0.00013698,2]
[347208828,1735575041227,-1141.9,0.00013698,2]
[347208829,1735575041237,-645.27,0.00013698,2]
[347208830,1735575041246,-708.52,0.00013698,2]
[347208831,1735575041257,-150.38,0.00013699,2]
[347208832,1735575041267,-150.38,0.00013699,2]
[347208833,1735575041276,-195.3591522,0.00013699,2]
[347208834,1735575041286,-13931.0785115,0.00013699,2]
[347208835,1735575041298,-424.477737,0.00013699,2]
[347208836,1735575041307,-201.78563676,0.00013699,2]
[347208837,1735575041316,-500.0,0.00013699,2]
[347208838,1735575041326,-360.04702807,0.00013699,2]
[347208839,1735575041336,-151.0,0.000137,2]
[347208840,1735575041346,-766.421,0.0001376,2]
[347208841,1735575041356,-10367.51696845,0.00013764,2]
[347208842,1735575041365,-151.0,0.000138,2]
[347208843,1735575041375,-166.030389,0.00013803,2]
[347208844,1735575041384,-156.31728227,0.000139,2]
[347208845,1735575041394,-150.0,0.00013906,2]
[347208846,1735575041404,-2097.0,0.00013906,2]
[347208847,1735575041413,-534.0,0.00013906,2]
[347208848,1735575041425,-2350.0,0.00013906,2]
[347208849,1735575041435,-1142.77,0.00013972,2]
[347208850,1735575041444,-2210.0,0.00013972,2]
[347208851,1735575041454,-346.39,0.00013972,2]
[347208852,1735575041463,-7749.27,0.00013972,2]
[347208853,1735575041473,-500.0,0.00013972,2]
[347208854,1735575041482,-2148.86,0.00013972,2]
[347208855,1735575041492,-500.0,0.00013972,2]
[347208856,1735575041501,-1141.9,0.00013972,2]
[347208857,1735575041511,-645.27,0.00013972,2]
[347208858,1735575041521,-708.52,0.00013972,2]
[347208859,1735575041530,-500.39849004,0.00013973,2]
[347208860,1735575041540,-518.86159991,0.00013973,2]
[347208861,1735575041553,-500.0,0.00013973,2]
[347208862,1735575041562,-500.0,0.00013973,2]
[347208863,1735575041572,-500.0,0.00013973,2]
[347208864,1735575041582,-500.0,0.00013973,2]
[347208865,1735575041592,-400.0,0.00013973,2]
[347208866,1735575041603,-579467.33813749,0.0001399,2]
[347208867,1735575041708,-458.43358099,0.00010958,2]
[347208868,1735575041717,-303428.56616236,0.0001399,2]
[347208869,1735575041730,-150118.78785558,0.0001399,2]
[347208889,1735575043232,-299.2,0.00012602,2]
[347208899,1735575689361,346.5,0.00023,120]
[347208905,1735575794589,449.6906084,9.108e-05,2]
[347209736,1735576000556,449.6906084,9.2e-05,2]
[347209737,1735576015896,449.6906084,9.2e-05,2]
[347209739,1735576031724,449.6906084,9.2e-05,2]
[347209747,1735576047955,449.6906084,9.2e-05,2]
[347209748,1735576063292,449.6906084,9.2e-05,2]
[347209749,1735576078338,449.6906084,9.2e-05,2]
[347209750,1735576094371,449.6906084,9.2e-05,2]
[347209752,1735576098165,-449.6906084,9.293e-05,2]
[347209754,1735576098197,-449.6906084,9.578e-05,2]
[347209755,1735576098228,-824.91727342,9.578e-05,2]
[347209757,1735576098267,-1032.09827971,9.578e-05,2]
[347209759,1735576098297,-692.20021051,0.00010095,2]
[347209761,1735576123123,-1793.27042983,9.994e-05,2]
[347209762,1735576123189,-623.69031076,9.994e-05,2]
[347209763,1735576123214,-275.40998655,0.0001,2]
[347209764,1735576123240,-705.4207116,0.00010095,2]
[347209765,1735576148265,-1711.54002899,9.994e-05,2]
[347209766,1735576148292,-149.68622962,0.00010095,2]
[347209767,1735576148326,-1561.85379937,0.00010095,2]
[347209768,1735576148352,-70.09817713,0.00010958,2]
[347209769,1735576173458,-1931.08982331,0.00010848,2]
[347209770,1735576173516,-851.34745051,0.00010848,2]
[347209771,1735576173544,-500.0,0.00010958,2]
[347209772,1735576173677,-500.0,0.00010958,2]
[347209773,1735576173705,-10.36033807,0.00010958,2]
[347209774,1735576198244,-289.46222015,0.00010958,2]
[347209775,1735576198271,-500.0,0.00010958,2]
[347209776,1735576198296,-500.0,0.00010958,2]
[347209777,1735576198321,-500.0,0.00010958,2]
[347209778,1735576198348,-217.4835554,0.00010958,2]
[347209779,1735576198377,-282.5164446,0.00010958,2]
[347209780,1735576198402,-500.0,0.00010958,2]
[347209781,1735576198428,-506.06018121,0.00010958,2]
[347209782,1735576198452,-358.07491919,0.00010958,2]
[347209818,1735576232471,-300.0,0.00010957,2]
[347209819,1735576232481,-176.35508081,0.00010958,2]
[347209820,1735576232491,-500.0,0.00010958,2]
[347209821,1735576232500,-500.0,0.00010958,2]
[347209823,1735576232512,-236.84784634,0.00010958,2]
[347209825,1735576232523,-500.0,0.00010958,2]
[347209827,1735576232532,-473.31185051,0.00010958,2]
[347209829,1735576232541,-500.0,0.00010958,2]
[347209831,1735576232551,-500.0,0.00010958,2]
[347209833,1735576232560,-500.0,0.00010958,2]
[347209835,1735576232569,-314.13579962,0.00010958,2]
[347209837,1735576232579,-322.77559653,0.00010958,2]
[347209838,1735576232588,-500.0,0.00010958,2]
[347209840,1735576232597,-500.0,0.00010958,2]
[347209842,1735576232606,-500.0,0.00010958,2]
[347209844,1735576232615,-500.0,0.00010958,2]
[347209846,1735576232624,-568.80965459,0.00010958,2]
[347209848,1735576232634,-500.0,0.00010958,2]
[347209850,1735576232643,-501.69583298,0.00010958,2]
[347209852,1735576232653,-500.0,0.00010958,2]
[347209854,1735576232662,-404.25159956,0.00010958,2]
[347209856,1735576232671,-500.0,0.00010958,2]
[347209858,1735576232680,-500.0,0.00010958,2]
[347209860,1735576232689,-500.0,0.00010958,2]
[347209862,1735576232699,-500.0,0.00010958,2]
[347209864,1735576232709,-500.0,0.00010958,2]
[347209866,1735576232718,-502.47187884,0.00010958,2]
[347209868,1735576232727,-502.03968351,0.00010958,2]
[347209870,1735576232736,-500.0,0.00010958,2]
[347209872,1735576232745,-634.5529643,0.00010958,2]
[347209874,1735576232755,-500.0,0.00010958,2]
[347209876,1735576232768,-500.0,0.00010958,2]
[347209878,1735576232777,-500.0,0.00010958,2]
[347209880,1735576232786,-500.0,0.00010958,2]
[347209882,1735576232796,-500.0,0.00010958,2]
[347209883,1735576232806,-500.0,0.00010958,2]
[347209884,1735576232815,-234.55716903,0.00010958,2]
[347209885,1735576232824,-500.0,0.00010958,2]
[347209886,1735576232834,-500.0,0.00010958,2]
[347209887,1735576232843,-500.0,0.00010958,2]
[347209888,1735576232852,-500.0,0.00010958,2]
[347209890,1735576232861,-501.55079268,0.00010958,2]
[347209892,1735576232871,-500.0,0.00010958,2]
[347209894,1735576232881,-502.63027622,0.00010958,2]
[347209896,1735576232890,-500.0,0.00010958,2]
[347209898,1735576232899,-500.0,0.00010958,2]
[347209900,1735576232909,-195.55163732,0.00010958,2]
[347209902,1735576232918,-500.0,0.00010958,2]
[347209904,1735576232928,-500.0,0.00010958,2]
[347209906,1735576232938,-500.0,0.00010958,2]
[347209908,1735576232947,-500.0,0.00010958,2]
[347209910,1735576232956,-500.0,0.00010958,2]
[347209911,1735576232966,-500.0,0.00010958,2]
[347209913,1735576232975,-500.0,0.00010958,2]
[347209915,1735576232985,-379.94062988,0.00010958,2]
[347209917,1735576232994,-500.0,0.00010958,2]
[347209919,1735576233004,-40.27510382,0.00010958,2]
[347209921,1735576233020,-459.72489618,0.00010958,2]
[347209923,1735576233030,-421.61369679,0.00010958,2]
[347209925,1735576233040,-506.64114542,0.00010958,2]
[347209926,1735576233049,-500.0,0.00010958,2]
[347209927,1735576233059,-578.30690411,0.00010958,2]
[347209928,1735576233068,-500.0,0.00010958,2]
[347209929,1735576233078,-500.0,0.00010958,2]
[347209930,1735576233087,-502.63554415,0.00010958,2]
[347209931,1735576233097,-500.0,0.00010958,2]
[347209932,1735576233107,-505.0681359,0.00010958,2]
[347209933,1735576233116,-500.0,0.00010958,2]
[347209934,1735576233126,-500.0,0.00010958,2]
[347209935,1735576233135,-500.0,0.00010958,2]
[347209936,1735576233145,-500.0,0.00010958,2]
[347209937,1735576233154,-438.90442558,0.00010958,2]
[347209938,1735576233163,-500.0,0.00010958,2]
[347209939,1735576233172,-500.0,0.00010958,2]
[347209940,1735576233183,-500.0,0.00010958,2]
[347209941,1735576233192,-500.0,0.00010958,2]
[347209942,1735576233202,-500.0,0.00010958,2]
[347209943,1735576233304,-500.0,0.00010958,2]
[347209944,1735576233315,-503.55581532,0.00010958,2]
[347209945,1735576233325,-500.0,0.00010958,2]
[347209946,1735576233335,-505.62307145,0.00010958,2]
[347209947,1735576233346,-500.0,0.00010958,2]
[347209948,1735576233357,-500.0,0.00010958,2]
[347209949,1735576233367,-500.0,0.00010958,2]
[347209950,1735576233377,-502.1206451,0.00010958,2]
[347209951,1735576233386,-499.26226255,0.00010958,2]
[347209952,1735576233396,-502.05634607,0.00010958,2]
[347209953,1735576233407,-500.0,0.00010958,2]
[347209954,1735576233416,-500.0,0.00010958,2]
[347209955,1735576233426,-502.87984027,0.00010958,2]
[347209956,1735576233435,-500.0,0.00010958,2]
[347209957,1735576233445,-500.0,0.00010958,2]
[347209958,1735576233455,-495.0,0.00010958,2]
[347209959,1735576233465,-500.0,0.00010958,2]
[347209960,1735576233474,-500.0,0.00010958,2]
[347209961,1735576233484,-500.0,0.00010958,2]
[347209962,1735576233494,-68.55615391,0.00010958,2]
[347209984,1735576240331,-435.16384609,0.00010958,2]
[347209985,1735576240342,-500.0,0.00010958,2]
[347209986,1735576240352,-636.20817403,0.00010958,2]
[347209987,1735576240362,-500.0,0.00010958,2]
[347209988,1735576240371,-500.0,0.00010958,2]
[347209989,1735576240382,-500.0,0.00010958,2]
[347209990,1735576240391,-500.0,0.00010958,2]
[347209991,1735576240402,-500.0,0.00010958,2]
[347209992,1735576240412,-500.0,0.00010958,2]
[347209994,1735576240422,-500.0,0.00010958,2]
[347209996,1735576240431,-500.0,0.00010958,2]
[347209997,1735576240440,-502.56102965,0.00010958,2]
[347209998,1735576240449,-500.0,0.00010958,2]
[347209999,1735576240459,-500.0,0.00010958,2]
[347210000,1735576240469,-534.59275332,0.00010958,2]
[347210001,1735576240478,-500.0,0.00010958,2]
[347210002,1735576240488,-501.14368607,0.00010958,2]
[347210003,1735576240497,-500.0,0.00010958,2]
[347210004,1735576240507,-500.0,0.00010958,2]
[347210005,1735576240517,-315.18493955,0.00010958,2]
[347210006,1735576240527,-500.0,0.00010958,2]
[347210007,1735576240535,-500.0,0.00010958,2]
[347210008,1735576240544,-500.0,0.00010958,2]
[347210009,1735576240553,-500.0,0.00010958,2]
[347210010,1735576240562,-520.04,0.00010958,2]
[347210011,1735576240571,-500.0,0.00010958,2]
[347210012,1735576240581,-500.0,0.00010958,2]
[347210013,1735576240590,-502.27542726,0.00010958,2]
[347210014,1735576240599,-500.0,0.00010958,2]
[347210015,1735576240608,-500.0,0.00010958,2]
[347210016,1735576240618,-500.0,0.00010958,2]
[347210017,1735576240627,-500.0,0.00010958,2]
[347210018,1735576240637,-501.03752456,0.00010958,2]
[347210019,1735576240646,-500.0,0.00010958,2]
[347210020,1735576240656,-500.0,0.00010958,2]
[347210021,1735576240666,-641.89,0.00010958,2]
[347210022,1735576240675,-500.0,0.00010958,2]
[347210023,1735576240685,-201.83730252,0.00010958,2]
[347210024,1735576240695,-500.0,0.00010958,2]
[347210025,1735576240704,-500.0,0.00010958,2]
[347210027,1735576240713,-500.0,0.00010958,2]
[347210028,1735576240723,-500.0,0.00010958,2]
[347210030,1735576240732,-1263.53,0.00010958,2]
[347210031,1735576240741,-503.06398226,0.00010958,2]
[347210032,1735576240750,-442.25630552,0.00010958,2]
[347210033,1735576240760,-500.0,0.00010958,2]
[347210034,1735576240770,-500.0,0.00010958,2]
[347210035,1735576240779,-500.0,0.00010958,2]
[347210036,1735576240788,-500.0,0.00010958,2]
[347210037,1735576240797,-512.66,0.00010958,2]
[347210038,1735576240806,-6048.69,0.00010958,2]
[347210040,1735576240816,-500.0,0.00010958,2]
[347210041,1735576240825,-578.18,0.00010958,2]
[347210042,1735576240835,-194.60185919,0.00010958,2]
[347210043,1735576240844,-500.0,0.00010958,2]
[347210045,1735576240853,-157.22615417,0.00010958,2]
[347210047,1735576240862,-500.0,0.00010958,2]
[347210049,1735576240872,-500.0,0.00010958,2]
[347210050,1735576240881,-500.0,0.00010958,2]
[347210051,1735576240890,-500.0,0.00010958,2]
[347210052,1735576240899,-500.0,0.00010958,2]
[347210053,1735576240908,-500.0,0.00010958,2]
[347210054,1735576240917,-500.0,0.00010958,2]
[347210056,1735576240926,-500.0,0.00010958,2]
[347210057,1735576240935,-500.0,0.00010958,2]
[347210058,1735576240944,-500.0,0.00010958,2]
[347210059,1735576240953,-500.0,0.00010958,2]
[347210060,1735576240962,-202.94,0.00010958,2]
[347210061,1735576240972,-618.36,0.00010958,2]
[347210062,1735576240980,-500.0,0.00010958,2]
[347210063,1735576240989,-500.0,0.00010958,2]
[347210064,1735576240998,-500.0,0.00010958,2]
[347210065,1735576241007,-500.0,0.00010958,2]
[347210066,1735576241016,-500.0,0.00010958,2]
[347210067,1735576241025,-500.0,0.00010958,2]
[347210068,1735576241034,-500.0,0.00010958,2]
[347210069,1735576241043,-500.0,0.00010958,2]
[347210070,1735576241052,-500.0,0.00010958,2]
[347210071,1735576241061,-500.0,0.00010958,2]
[347210072,1735576241070,-782.68,0.00010958,2]
[347210073,1735576241080,-500.0,0.00010958,2]
[347210074,1735576241089,-500.0,0.00010958,2]
[347210075,1735576241098,-500.0,0.00010958,2]
[347210076,1735576241107,-500.0,0.00010958,2]
[347210077,1735576241116,-500.0,0.00010958,2]
[347210078,1735576241125,-520.01641438,0.00010958,2]
[347210079,1735576241135,-500.0,0.00010958,2]
[347210080,1735576241144,-500.0,0.00010958,2]
[347210081,1735576241153,-541.09,0.00010958,2]
[347210082,1735576241162,-500.0,0.00010958,2]
[347210083,1735576241171,-500.0,0.00010958,2]
[347210084,1735576241180,-522.11190142,0.00010958,2]
[347210085,1735576241190,-500.0,0.00010958,2]
[347210086,1735576241199,-500.0,0.00010958,2]
[347210087,1735576241208,-500.0,0.00010958,2]
[347210088,1735576241217,-505.37511582,0.00010958,2]
[347210089,1735576241226,-500.0,0.00010958,2]
[347210090,1735576241236,-500.0,0.00010958,2]
[347210091,1735576241245,-500.90770106,0.00010958,2]
[347210092,1735576241254,-500.0,0.00010958,2]
[347210093,1735576241267,-500.0,0.00010958,2]
[347210094,1735576241278,-589.61895106,0.00010958,2]
[347210095,1735576241287,-500.0,0.00010958,2]
[347210096,1735576241297,-500.0,0.00010958,2]
[347210097,1735576241306,-433.91060733,0.00010958,2]
[347210098,1735576241315,-638.01,0.00010958,2]
[347210099,1735576241407,-500.0,0.00010958,2]
[347210100,1735576241417,-500.0,0.00010958,2]
[347210101,1735576241427,-500.0,0.00010958,2]
[347210102,1735576241437,-500.0,0.00010958,2]
[347210103,1735576241447,-1806.65,0.00010958,2]
[347210104,1735576241456,-1806.65,0.00010958,2]
[347210105,1735576241466,-2570.42,0.00010958,2]
[347210106,1735576241475,-500.0,0.00010958,2]
[347210107,1735576241485,-500.0,0.00010958,2]
[347210108,1735576241494,-920.24,0.00010958,2]
[347210109,1735576241503,-624.82,0.00010958,2]
[347210110,1735576241513,-500.0,0.00010958,2]
[347210111,1735576241524,-489.63966193,0.00010958,2]
[347210112,1735576241534,-500.0,0.00010958,2]
[347210113,1735576241544,-500.0,0.00010958,2]
[347210114,1735576241553,-500.0,0.00010958,2]
[347210115,1735576241562,-502.67327573,0.00010958,2]
[347210116,1735576241571,-500.0,0.00010958,2]
[347210117,1735576241580,-1210.22,0.00010958,2]
[347210118,1735576241590,-500.0,0.00010958,2]
[347210119,1735576241599,-500.0,0.00010958,2]
[347210120,1735576241608,-500.0,0.00010958,2]
[347210121,1735576241618,-500.0,0.00010958,2]
[347210122,1735576241627,-210.08467289,0.00010958,2]
[347210123,1735576241636,-500.0,0.00010958,2]
[347210124,1735576241645,-500.0,0.00010958,2]
[347210125,1735576241655,-500.0,0.00010958,2]
[347210126,1735576241665,-506.64147036,0.00010958,2]
[347210127,1735576241674,-187.8550784,0.00010958,2]
[347210128,1735576241684,-500.0,0.00010958,2]
[347210129,1735576241694,-500.0,0.00010958,2]
[347210130,1735576241704,-500.0,0.00010958,2]
[347210131,1735576241713,-500.0,0.00010958,2]
[347210132,1735576241722,-500.0,0.00010958,2]
[347210133,1735576241732,-500.0,0.00010958,2]
[347210134,1735576241741,-294.5252103,0.00010959,2]
[347210135,1735576241751,-417.66831914,0.00010973,2]
[347210136,1735576241760,-500.0,0.00010973,2]
[347210137,1735576241772,-500.0,0.00010973,2]
[347210138,1735576241782,-500.0,0.00010973,2]
[347210139,1735576241792,-1521.36245966,0.00011132,2]
[347210140,1735576241803,-1806.65,0.00011231,2]
[347210141,1735576241812,-939.11,0.00011231,2]
[347210142,1735576241821,-500.0,0.00011232,2]
[347210143,1735576241831,-500.0,0.00011232,2]
[347210144,1735576241840,-500.0,0.00011232,2]
[347210145,1735576241849,-500.0,0.00011232,2]
[347210146,1735576241859,-500.0,0.00011232,2]
[347210147,1735576241868,-500.0,0.00011232,2]
[347210148,1735576241877,-500.0,0.00011232,2]
[347210149,1735576241886,-1263.53,0.00011232,2]
[347210150,1735576241895,-500.0,0.00011232,2]
[347210151,1735576241905,-6048.69,0.00011232,2]
[347210152,1735576241914,-578.18,0.00011232,2]
[347210153,1735576241923,-500.0,0.00011232,2]
[347210154,1735576241932,-318.55342181,0.00011232,2]
[347210155,1735576241942,-480.66,0.00011232,2]
[347210156,1735576241952,-500.0,0.00011232,2]
[347210157,1735576241961,-500.0,0.00011232,2]
[347210158,1735576241971,-500.0,0.00011232,2]
[347210159,1735576241980,-500.0,0.00011232,2]
[347210160,1735576241990,-500.0,0.00011232,2]
[347210161,1735576241999,-500.0,0.00011232,2]
[347210162,1735576242009,-782.68,0.00011232,2]
[347210163,1735576242020,-500.0,0.00011232,2]
[347210164,1735576242029,-500.0,0.00011232,2]
[347210165,1735576242038,-500.0,0.00011232,2]
[347210166,1735576242048,-500.0,0.00011232,2]
[347210167,1735576242057,-500.0,0.00011232,2]
[347210168,1735576242067,-2570.42,0.00011232,2]
[347210169,1735576242076,-920.24,0.00011232,2]
[347210170,1735576242085,-624.82,0.00011232,2]
[347210171,1735576242095,-500.0,0.00011232,2]
[347210172,1735576242105,-500.0,0.00011232,2]
[347210173,1735576242114,-404.55,0.00011232,2]
[347210174,1735576242123,-1210.22,0.00011232,2]
[347210175,1735576242132,-500.0,0.00011232,2]
[347210176,1735576242142,-500.0,0.00011232,2]
[347210177,1735576242151,-500.0,0.00011232,2]
[347210178,1735576242160,-334.9468776,0.00011232,2]
[347210179,1735576242169,-393.17297505,0.00011232,2]
[347210180,1735576242179,-500.0,0.00011232,2]
[347210181,1735576242188,-500.0,0.00011232,2]
[347210182,1735576242197,-1806.65,0.00011505,2]
[347210183,1735576242206,-939.11,0.00011505,2]
[347210184,1735576242215,-572.98130368,0.00011506,2]
[347210185,1735576242225,-1263.53,0.00011506,2]
[347210186,1735576242234,-6048.69,0.00011506,2]
[347210187,1735576242244,-578.18,0.00011506,2]
[347210188,1735576242253,-500.0,0.00011506,2]
[347210189,1735576242264,-500.0,0.00011506,2]
[347210190,1735576242276,-500.0,0.00011506,2]
[347210191,1735576242286,-500.0,0.00011506,2]
[347210192,1735576242296,-782.68,0.00011506,2]
[347210193,1735576242307,-500.0,0.00011506,2]
[347210194,1735576242318,-500.0,0.00011506,2]
[347210195,1735576242328,-500.0,0.00011506,2]
[347210196,1735576242337,-500.0,0.00011506,2]
[347210197,1735576242347,-2570.42,0.00011506,2]
[347210198,1735576242356,-920.24,0.00011506,2]
[347210199,1735576242366,-624.82,0.00011506,2]
[347210200,1735576242376,-500.0,0.00011506,2]
[347210201,1735576242385,-1210.22,0.00011506,2]
[347210202,1735576242394,-500.0,0.00011506,2]
[347210203,1735576242404,-500.0,0.00011506,2]
[347210204,1735576242413,-500.0,0.00011506,2]
[347210205,1735576242422,-500.0,0.00011506,2]
[347210206,1735576242431,-500.0,0.00011506,2]
[347210207,1735576242441,-939.11,0.00011779,2]
[347210208,1735576242450,-1263.53,0.0001178,2]
[347210209,1735576242459,-6048.69,0.0001178,2]
[347210210,1735576242468,-578.18,0.0001178,2]
[347210211,1735576242477,-500.0,0.0001178,2]
[347210212,1735576242487,-500.0,0.0001178,2]
[347210213,1735576242496,-500.0,0.0001178,2]
[347210214,1735576242505,-782.68,0.0001178,2]
[347210215,1735576242515,-500.0,0.0001178,2]
[347210216,1735576242526,-500.0,0.0001178,2]
[347210217,1735576242535,-500.0,0.0001178,2]
[347210218,1735576242545,-2570.42,0.0001178,2]
[347210219,1735576242554,-920.24,0.0001178,2]
[347210220,1735576242563,-624.82,0.0001178,2]
[347210221,1735576242573,-500.0,0.0001178,2]
[347210222,1735576242582,-1210.22,0.0001178,2]
[347210223,1735576242591,-197.72,0.0001178,2]
[347210224,1735576242600,-500.0,0.0001178,2]
[347210225,1735576242610,-500.0,0.0001178,2]
[347210226,1735576242619,-500.0,0.0001178,2]
[347210227,1735576242629,-1521.36245962,0.00011824,2]
[347210228,1735576242638,-6076.71784179,0.00012041,2]
[347210229,1735576242647,-420.0,0.00012041,2]
[347210230,1735576242657,-1806.65,0.00012053,2]
[347210231,1735576242666,-939.11,0.00012053,2]
[347210232,1735576242675,-1263.53,0.00012054,2]
[347210233,1735576242684,-6048.69,0.00012054,2]
[347210234,1735576242694,-578.18,0.00012054,2]
[347210235,1735576242703,-500.0,0.00012054,2]
[347210236,1735576242713,-500.0,0.00012054,2]
[347210237,1735576242722,-500.0,0.00012054,2]
[347210238,1735576242731,-782.68,0.00012054,2]
[347210239,1735576242741,-500.0,0.00012054,2]
[347210240,1735576242750,-267.72,0.00012054,2]
[347210241,1735576242760,-500.0,0.00012054,2]
[347210242,1735576242773,-2570.42,0.00012054,2]
[347210243,1735576242784,-920.24,0.00012054,2]
[347210244,1735576242794,-624.82,0.00012054,2]
[347210245,1735576242803,-500.0,0.00012054,2]
[347210246,1735576242812,-1210.22,0.00012054,2]
[347210247,1735576242822,-500.0,0.00012054,2]
[347210248,1735576242831,-500.0,0.00012054,2]
[347210249,1735576242840,-384.64,0.00012054,2]
[347210250,1735576242849,-939.11,0.00012327,2]
[347210252,1735576242859,-1263.53,0.00012328,2]
[347210254,1735576242868,-6048.69,0.00012328,2]
[347210255,1735576242878,-578.18,0.00012328,2]
[347210256,1735576242887,-500.0,0.00012328,2]
[347210257,1735576242897,-500.0,0.00012328,2]
[347210258,1735576242906,-500.0,0.00012328,2]
[347210259,1735576242915,-782.68,0.00012328,2]
[347210260,1735576242924,-500.0,0.00012328,2]
[347210261,1735576242933,-283.88,0.00012328,2]
[347210263,1735576242942,-2570.42,0.00012328,2]
[347210265,1735576242951,-920.24,0.00012328,2]
[347210267,1735576242961,-624.82,0.00012328,2]
[347210268,1735576242970,-500.0,0.00012328,2]
[347210270,1735576242980,-1210.22,0.00012328,2]
[347210272,1735576242989,-500.0,0.00012328,2]